[Event "Polish Youth 1st League 2022"]
[Site "Lublin"]
[Date "2022.07.02"]
[Round "8.17"]
[White "Mroz, Lena"]
[Black "Kroliczek, Gabriela"]
[Result "0-1"]
[ECO "C02"]
[WhiteElo "1719"]
[BlackElo "1934"]
[Annotator "RC"]
[PlyCount "118"]
[EventDate "2022.06.24"]
[EventType "team-tourn"]
[EventCountry "POL"]
[SourceTitle "playchess.com"]
[Source "ChessBase"]
[SourceQuality "1"]
[TimeControl "40/5400+30:1800+30"]

1. e4 {[%emt 0:00:02]} e6 {[%emt 0:00:04]} 2. d4 {[%emt 0:00:12]} d5 {[%emt 0:00:04]} 3. e5 {[%emt 0:00:13]} c5 {[%emt 0:00:14]} 4. c3 {[%emt 0:00:10]} Nc6 {[%emt 0:00:02]} 5. Nf3 {[%emt 0:01:07]} Bd7 {[%emt 0:00:05]} 6. a3 {[%emt 0:02:04]} c4 {[%emt 0:00:06]} 7. Nbd2 {[%emt 0:00:09]} Nge7 {[%emt 0:00:21]} 8. h4 {[%emt 0:01:31]} Na5 {[%emt 0:02:04]} 9. g3 {[%emt 0:02:40]} Nc8 {[%emt 0:00:23]} 10. Bh3 {[%emt 0:04:37]} Be7 {[%emt 0:01:55]} 11. O-O {[%emt 0:01:52]} Nb6 {[%emt 0:00:05]} 12. Kh2 {[%emt 0:08:42]} Qc7 {[%emt 0:07:41]} 13. Rg1 {[%emt 0:10:30]} h6 {[%emt 0:02:13]} 14. h5 {[%emt 0:01:15]} O-O-O {[%emt 0:00:13]} 15. Nf1 {[%emt 0:03:53]} Nb3 {[%emt 0:00:12]} 16. Rb1 {[%emt 0:00:38]} Nxc1 {[%emt 0:00:04]} 17. Qxc1 {[%emt 0:02:21]} Kb8 {[%emt 0:02:57]} 18. Ne3 {[%emt 0:03:14]} Rdg8 {[%emt 0:03:36]} 19. Ng2 {[%emt 0:09:23]} Qc8 {[%emt 0:04:54]} 20. Rf1 {[%emt 0:08:19]} Qe8 {[%emt 0:10:11]} 21. Qd1 {[%emt 0:04:08]} g6 {[%emt 0:09:47]} 22. Bg4 {[%emt 0:05:52]} Bd8 {[%emt 0:06:52]} 23. Nfh4 {[%emt 0:05:07]} Rg7 {[%emt 0:03:40]} 24. Qe2 {[%emt 0:06:08]} Rhg8 {[%emt 0:14:54]} 25. Rbe1 {[%emt 0:03:42]} Nc8 {[%emt 0:01:04]} 26. Qd1 {[%emt 0:05:34]} Ne7 {[%emt 0:07:27]} 27. Ne3 {[%emt 0:01:37]} Rf8 {[%emt 0:00:56]} 28. Kh1 {[%emt 0:05:59]} Ng8 {[%emt 0:01:04]} 29. Nhg2 {[%emt 0:00:45]} Bc7 {[%emt 0:09:15]} 30. Kh2 {[%emt 0:01:34]} f5 {[%emt 0:01:49]} 31. Bf3 {[%emt 0:01:58]} Ba4 {[%emt 0:00:49]} 32. Qe2 {[%emt 0:00:20]} g5 {[%emt 0:02:11]} 33. g4 {[%emt 0:00:07]} fxg4 {[%emt 0:01:55]} 34. Bxg4 {[%emt 0:00:08]} Nf6 {[%emt 0:00:41]} 35. Kg1 {[%emt 0:00:30]} Nxg4 {[%emt 0:00:08]} 36. Qxg4 {[%emt 0:00:03]} Qf7 {[%emt 0:02:25]} 37. Kh2 {[%emt 0:01:29]} Be8 {[%emt 0:00:05]} 38. Rh1 {[%emt 0:00:29]} Rh7 {[%emt 0:01:16]} 39. Ref1 {[%emt 0:00:50]} Qxh5+ {[%emt 0:01:41]} 40. Qxh5 {[%emt 0:00:00]} Bxh5 {[%emt 0:00:00]} 41. f4 {[%emt 0:03:10]} Be2 {[%emt 0:01:43]} 42. Rf2 {[%emt 0:08:02]} Bd3 {[%emt 0:00:14]} 43. Kg1 {[%emt 0:01:30]} Bd8 {[%emt 0:03:55]} 44. fxg5 {[%emt 0:06:16]} Rxf2 {[%emt 0:00:06]} 45. Kxf2 {[%emt 0:00:13]} Bxg5 {[%emt 0:00:10]} 46. Kg3 {[%emt 0:03:05]} Rf7 {[%emt 0:01:00]} 47. Re1 {[%emt 0:09:27]} Kc7 {[%emt 0:00:38]} 48. Ng4 {[%emt 0:00:34]} Be4 {[%emt 0:01:27]} 49. Nh2 {[%emt 0:01:51]} Rg7 {[%emt 0:09:17]} 50. Kf2 {[%emt 0:01:35]} Bxg2 {[%emt 0:00:24]} 51. Kxg2 {[%emt 0:00:14]} Bd2+ {[%emt 0:00:07]} 52. Kf1 {[%emt 0:00:32]} Bxe1 {[%emt 0:00:07]} 53. Kxe1 {[%emt 0:00:15]} Rg2 {[%emt 0:00:07]} 54. Nf3 {[%emt 0:00:55]} Rxb2 {[%emt 0:00:08]} 55. Kd1 {[%emt 0:00:34]} Ra2 {[%emt 0:01:38]} 56. Kc1 {[%emt 0:00:16]} b5 {[%emt 0:00:16]} 57. Nh4 {[%emt 0:00:32]} Rxa3 {[%emt 0:00:44]} 58. Kb2 {[%emt 0:00:06]} Rb3+ {[%emt 0:00:32]} 59. Kc2 {[%emt 0:00:08]} a5 {[%emt 0:00:08]} 0-1

[Event "Polish Youth 1st League 2022"]
[Site "Lublin"]
[Date "2022.07.02"]
[Round "8.18"]
[White "Seemann, Pola"]
[Black "Lajdamik, Kinga"]
[Result "1-0"]
[ECO "C28"]
[WhiteElo "1777"]
[BlackElo "1308"]
[Annotator "NA RC"]
[PlyCount "81"]
[EventDate "2022.06.24"]
[EventType "team-tourn"]
[EventCountry "POL"]
[SourceTitle "playchess.com"]
[Source "ChessBase"]
[SourceQuality "1"]
[TimeControl "40/5400+30:1800+30"]

1. e4 {[%emt 0:00:03]} e5 {[%emt 0:00:03]} 2. Nc3 {[%emt 0:00:05]} Nc6 {[%emt 0:01:01]} 3. Bc4 {[%emt 0:00:08]} Nf6 {[%emt 0:01:11]} 4. d3 {[%emt 0:00:06]} Bc5 {[%emt 0:05:07]} 5. f4 {[%emt 0:00:07]} d6 {[%emt 0:12:50]} 6. Nf3 {[%emt 0:00:10]} Bg4 {[%emt 0:12:07]} 7. Na4 {[%emt 0:02:55]} Bb6 {[%emt 0:02:03]} 8. Bd2 {[%emt 0:04:20]} Qd7 {[%emt 0:02:48]} 9. c3 {[%emt 0:03:43]} O-O-O {[%emt 0:01:01]} 10. Nxb6+ {[%emt 0:03:45]} axb6 {[%emt 0:00:16]} 11. Qc2 {[%emt 0:00:33]} Rhe8 {[%emt 0:00:59]} 12. Bb5 {[%emt 0:04:00]} Bxf3 {[%emt 0:07:31]} 13. gxf3 {[%emt 0:00:10]} Qh3 {[%emt 0:04:09]} 14. O-O-O {[%emt 0:02:15]} Qxf3 {[%emt 0:06:44]} 15. f5 {[%emt 0:03:54]} Nd7 {[%emt 0:13:16]} 16. Rhg1 {[%emt 0:04:00]} Rg8 {[%emt 0:01:56]} 17. Rg3 {[%emt 0:01:36]} Qh5 {[%emt 0:01:38]} 18. Be3 {[%emt 0:03:07]} g6 {[%emt 0:05:34]} 19. Qg2 {[%emt 0:03:02]} f6 {[%emt 0:03:59]} 20. Bc4 {[%emt 0:11:21]} Rg7 {[%emt 0:00:47]} 21. Bf7 {[%emt 0:00:28]} Nf8 {[%emt 0:03:31]} 22. Rg1 {[%emt 0:02:12]} Rxf7 {[%emt 0:08:28]} 23. Rh3 {[%emt 0:00:07]} Qxh3 {[%emt 0:00:11]} 24. Qxh3 {[%emt 0:00:05]} g5 {[%emt 0:00:20]} 25. Qf1 {[%emt 0:00:41]} h5 {[%emt 0:00:32]} 26. Qd1 {[%emt 0:00:12]} h4 {[%emt 0:00:23]} 27. h3 {[%emt 0:00:40]} Re7 {[%emt 0:00:30]} 28. Qa4 {[%emt 0:00:17]} Kb8 {[%emt 0:00:15]} 29. c4 {[%emt 0:00:56]} Nd7 {[%emt 0:00:17]} 30. b4 {[%emt 0:00:24]} Na7 {[%emt 0:00:16]} 31. Rg2 {[%emt 0:00:32]} Rh7 {[%emt 0:00:37]} 32. Bg1 {[%emt 0:01:07]} c6 {[%emt 0:00:50]} 33. Rb2 {[%emt 0:01:03]} Rhh8 {[%emt 0:00:13]} 34. Qb3 {[%emt 0:04:40]} Kc7 {[%emt 0:02:33]} 35. a4 {[%emt 0:02:27]} Rhf8 {[%emt 0:00:40]} 36. a5 {[%emt 0:00:19]} Nc8 {[%emt 0:01:01]} 37. axb6+ {[%emt 0:00:51]} Ncxb6 {[%emt 0:00:13]} 38. c5 {[%emt 0:00:12]} Nc8 {[%emt 0:00:27]} 39. Qa4 {[%emt 0:00:57]} Nb8 {[%emt 0:02:22]} 40. cxd6+ {[%emt 0:00:00]} Nxd6 {[%emt 0:00:00]} 41. Bb6+ {[%emt 0:00:59]} 1-0

[Event "Polish Youth 1st League 2022"]
[Site "Lublin"]
[Date "2022.07.02"]
[Round "8.19"]
[White "Jedraszek, Pawel"]
[Black "Wieczorek, Mikolaj"]
[Result "1/2-1/2"]
[ECO "B32"]
[WhiteElo "1933"]
[BlackElo "1942"]
[Annotator "RC"]
[PlyCount "135"]
[EventDate "2022.06.24"]
[EventType "team-tourn"]
[EventCountry "POL"]
[SourceTitle "playchess.com"]
[Source "ChessBase"]
[SourceQuality "1"]
[TimeControl "40/5400+30:1800+30"]

1. e4 {[%emt 0:00:02]} c5 {[%emt 0:00:05]} 2. Nf3 {[%emt 0:00:05]} Nc6 {[%emt 0:00:04]} 3. d4 {[%emt 0:00:06]} cxd4 {[%emt 0:00:03]} 4. Nxd4 {[%emt 0:00:07]} e5 {[%emt 0:00:03]} 5. Nb5 {[%emt 0:00:14]} d6 {[%emt 0:00:03]} 6. c4 {[%emt 0:00:55]} a6 {[%emt 0:00:32]} 7. N5c3 {[%emt 0:01:06]} Nf6 {[%emt 0:01:25]} 8. Na3 {[%emt 0:02:34]} Be7 {[%emt 0:00:34]} 9. Be2 {[%emt 0:02:39]} O-O {[%emt 0:00:43]} 10. Be3 {[%emt 0:01:27]} Be6 {[%emt 0:01:50]} 11. f3 {[%emt 0:01:05]} Rc8 {[%emt 0:03:46]} 12. Qd2 {[%emt 0:03:31]} b5 {[%emt 0:14:17]} 13. cxb5 {[%emt 0:04:30]} Nd4 {[%emt 0:00:04]} 14. bxa6 {[%emt 0:06:39]} d5 {[%emt 0:00:39]} 15. exd5 {[%emt 0:02:34]} Nxd5 {[%emt 0:00:17]} 16. Nxd5 {[%emt 0:03:09]} Qxd5 {[%emt 0:02:16]} 17. Bxd4 {[%emt 0:04:50]} exd4 {[%emt 0:00:21]} 18. O-O {[%emt 0:02:04]} Bxa3 {[%emt 0:02:48]} 19. bxa3 {[%emt 0:00:02]} Rc3 {[%emt 0:00:37]} 20. Rfd1 {[%emt 0:04:05]} Rxa3 {[%emt 0:03:46]} 21. Qxd4 {[%emt 0:00:33]} Qa5 {[%emt 0:00:19]} 22. Bf1 {[%emt 0:09:53]} Ra4 {[%emt 0:01:32]} 23. Qd2 {[%emt 0:03:01]} Qb6+ {[%emt 0:01:46]} 24. Qf2 {[%emt 0:00:09]} Qa5 {[%emt 0:00:03]} 25. Rd2 {[%emt 0:07:54]} g6 {[%emt 0:26:33]} 26. Rb2 {[%emt 0:05:09]} Rd8 {[%emt 0:02:51]} 27. Rc2 {[%emt 0:05:27]} Bc8 {[%emt 0:16:48]} 28. a7 {[%emt 0:04:56]} Qxa7 {[%emt 0:00:36]} 29. Qxa7 {[%emt 0:00:02]} Rxa7 {[%emt 0:00:06]} 30. Bc4 {[%emt 0:02:02]} Bf5 {[%emt 0:02:14]} 31. Re2 {[%emt 0:01:30]} Rd4 {[%emt 0:04:31]} 32. Bb3 {[%emt 0:01:28]} h5 {[%emt 0:04:40]} 33. Rae1 {[%emt 0:00:58]} Rdd7 {[%emt 0:00:26]} 34. Kf2 {[%emt 0:01:29]} Kg7 {[%emt 0:00:49]} 35. Kg3 {[%emt 0:02:40]} Kf6 {[%emt 0:03:02]} 36. h4 {[%emt 0:01:12]} Rd4 {[%emt 0:01:56]} 37. Re8 {[%emt 0:02:17]} Rc7 {[%emt 0:03:11]} 38. Rb8 {[%emt 0:01:26]} Rd2 {[%emt 0:01:11]} 39. Rb4 {[%emt 0:01:12]} Rcd7 {[%emt 0:00:57]} 40. Rf1 {[%emt 0:00:00]} Be6 {[%emt 0:00:00]} 41. Rf2 {[%emt 0:06:54]} Rxf2 {[%emt 0:04:41]} 42. Kxf2 {[%emt 0:00:02]} Bxb3 {[%emt 0:01:03]} 43. axb3 {[%emt 0:00:02]} Rd2+ {[%emt 0:00:09]} 44. Kg3 {[%emt 0:00:28]} Rb2 {[%emt 0:00:38]} 45. Kh3 {[%emt 0:01:53]} Rb1 {[%emt 0:03:25]} 46. g4 {[%emt 0:01:38]} hxg4+ {[%emt 0:03:39]} 47. fxg4 {[%emt 0:02:18]} Rd1 {[%emt 0:03:00]} 48. Rb5 {[%emt 0:03:13]} Kg7 {[%emt 0:05:02]} 49. b4 {[%emt 0:03:58]} Rd4 {[%emt 0:01:50]} 50. Kg3 {[%emt 0:02:15]} Kh7 {[%emt 0:00:49]} 51. Kf3 {[%emt 0:03:00]} Kg7 {[%emt 0:00:59]} 52. h5 {[%emt 0:09:59]} Rc4 {[%emt 0:02:13]} 53. hxg6 {[%emt 0:01:36]} Kxg6 {[%emt 0:00:27]} 54. g5 {[%emt 0:02:20]} f5 {[%emt 0:04:14]} 55. gxf6 {[%emt 0:00:10]} Kxf6 {[%emt 0:00:04]} 56. Ke3 {[%emt 0:00:28]} Ke6 {[%emt 0:00:12]} 57. Kd3 {[%emt 0:00:28]} Rc1 {[%emt 0:00:08]} 58. Kd4 {[%emt 0:00:49]} Kd6 {[%emt 0:01:30]} 59. Rb8 {[%emt 0:01:16]} Kc7 {[%emt 0:00:21]} 60. Rb5 {[%emt 0:01:00]} Kc6 {[%emt 0:00:30]} 61. Rc5+ {[%emt 0:00:18]} Rxc5 {[%emt 0:00:10]} 62. bxc5 {[%emt 0:00:09]} Kc7 {[%emt 0:00:11]} 63. Kd5 {[%emt 0:00:06]} Kd7 {[%emt 0:00:13]} 64. c6+ {[%emt 0:00:04]} Kc7 {[%emt 0:00:04]} 65. Kc5 {[%emt 0:00:04]} Kc8 {[%emt 0:00:10]} 66. Kb6 {[%emt 0:00:05]} Kb8 {[%emt 0:00:07]} 67. c7+ {[%emt 0:00:04]} Kc8 {[%emt 0:00:02]} 68. Kc6 {[%emt 0:00:04]} 1/2-1/2

[Event "Polish Youth 1st League 2022"]
[Site "Lublin"]
[Date "2022.07.02"]
[Round "8.20"]
[White "Halhoul, Adam"]
[Black "Klaska, Szymon"]
[Result "1-0"]
[ECO "E47"]
[WhiteElo "1675"]
[BlackElo "1563"]
[Annotator "NA RC"]
[PlyCount "97"]
[EventDate "2022.06.24"]
[EventType "team-tourn"]
[EventCountry "POL"]
[SourceTitle "playchess.com"]
[Source "ChessBase"]
[SourceQuality "1"]
[TimeControl "40/5400+30:1800+30"]

1. d4 {[%emt 0:00:17]} Nf6 {[%emt 0:00:52]} 2. c4 {[%emt 0:00:40]} e6 {[%emt 0:01:03]} 3. Nc3 {[%emt 0:00:31]} Bb4 {[%emt 0:00:58]} 4. e3 {[%emt 0:01:07]} O-O {[%emt 0:01:11]} 5. Bd3 {[%emt 0:00:09]} b6 {[%emt 0:03:53]} 6. Nge2 {[%emt 0:00:17]} Bb7 {[%emt 0:02:37]} 7. O-O {[%emt 0:01:54]} d5 {[%emt 0:01:26]} 8. a3 {[%emt 0:04:32]} Bd6 {[%emt 0:01:10]} 9. f3 {[%emt 0:11:07]} Nbd7 {[%emt 0:03:29]} 10. e4 {[%emt 0:10:37]} dxe4 {[%emt 0:01:18]} 11. Nxe4 {[%emt 0:07:23]} Nxe4 {[%emt 0:01:22]} 12. Bxe4 {[%emt 0:02:27]} Bxe4 {[%emt 0:01:36]} 13. fxe4 {[%emt 0:00:01]} e5 {[%emt 0:00:16]} 14. d5 {[%emt 0:32:40]} Qh4 {[%emt 0:02:33]} 15. Nc3 {[%emt 0:07:30]} Bc5+ {[%emt 0:04:35]} 16. Kh1 {[%emt 0:00:53]} Nf6 {[%emt 0:00:35]} 17. Qe1 {[%emt 0:01:10]} Qh5 {[%emt 0:01:55]} 18. Rf5 {[%emt 0:04:57]} Qg6 {[%emt 0:01:04]} 19. Rg5 {[%emt 0:01:23]} Qh6 {[%emt 0:01:00]} 20. Rxe5 {[%emt 0:02:40]} Qg6 {[%emt 0:00:33]} 21. Rg5 {[%emt 0:00:36]} Qh6 {[%emt 0:00:36]} 22. e5 {[%emt 0:02:51]} Rae8 {[%emt 0:01:56]} 23. Qg3 {[%emt 0:01:28]} Nh5 {[%emt 0:07:24]} 24. Qg4 {[%emt 0:01:54]} g6 {[%emt 0:00:56]} 25. Ne4 {[%emt 0:00:23]} Be7 {[%emt 0:03:33]} 26. Rxh5 {[%emt 0:01:25]} Qxh5 {[%emt 0:00:20]} 27. Qxh5 {[%emt 0:00:03]} gxh5 {[%emt 0:00:08]} 28. Bh6 {[%emt 0:00:05]} f5 {[%emt 0:01:29]} 29. Bxf8 {[%emt 0:00:35]} Rxf8 {[%emt 0:00:57]} 30. Nc3 {[%emt 0:00:20]} a6 {[%emt 0:00:32]} 31. Rf1 {[%emt 0:00:23]} Kg7 {[%emt 0:00:29]} 32. g3 {[%emt 0:00:15]} Kg6 {[%emt 0:00:22]} 33. Kg2 {[%emt 0:00:28]} h4 {[%emt 0:01:12]} 34. Ne2 {[%emt 0:00:26]} Bg5 {[%emt 0:01:34]} 35. Nf4+ {[%emt 0:01:00]} Bxf4 {[%emt 0:00:15]} 36. gxf4 {[%emt 0:00:15]} Kh5 {[%emt 0:00:53]} 37. Kh3 {[%emt 0:01:54]} Rg8 {[%emt 0:00:21]} 38. Rf2 {[%emt 0:00:14]} Rg1 {[%emt 0:00:32]} 39. Rg2 {[%emt 0:01:41]} Re1 {[%emt 0:00:34]} 40. Rg5+ {[%emt 0:00:00]} Kh6 {[%emt 0:00:00]} 41. Rxf5 {[%emt 0:03:15]} Kg6 {[%emt 0:00:37]} 42. Rg5+ {[%emt 0:01:57]} Kf7 {[%emt 0:00:15]} 43. Kg4 {[%emt 0:02:44]} Rc1 {[%emt 0:00:31]} 44. b3 {[%emt 0:03:53]} Rc3 {[%emt 0:00:20]} 45. Kf5 {[%emt 0:00:24]} Rxb3 {[%emt 0:00:09]} 46. e6+ {[%emt 0:00:33]} Ke7 {[%emt 0:00:06]} 47. Rg7+ {[%emt 0:00:39]} Kd8 {[%emt 0:00:11]} 48. Kf6 {[%emt 0:00:55]} Re3 {[%emt 0:00:17]} 49. Rg8# {[%emt 0:00:07]} 1-0

[Event "Polish Youth 1st League 2022"]
[Site "Lublin"]
[Date "2022.07.02"]
[Round "8.21"]
[White "Ugorek, Kacper"]
[Black "Nagly, Wojciech"]
[Result "1-0"]
[ECO "E04"]
[WhiteElo "1696"]
[BlackElo "1464"]
[Annotator "NA RC"]
[PlyCount "111"]
[EventDate "2022.06.24"]
[EventType "team-tourn"]
[EventCountry "POL"]
[SourceTitle "playchess.com"]
[Source "ChessBase"]
[SourceQuality "1"]
[TimeControl "40/5400+30:1800+30"]

1. d4 {[%emt 0:00:02]} Nf6 {[%emt 0:01:41]} 2. c4 {[%emt 0:00:35]} e6 {[%emt 0:00:14]} 3. Nf3 {[%emt 0:01:24]} d5 {[%emt 0:00:19]} 4. g3 {[%emt 0:00:35]} dxc4 {[%emt 0:00:32]} 5. Bg2 {[%emt 0:04:10]} c5 {[%emt 0:00:56]} 6. Qa4+ {[%emt 0:07:29]} Bd7 {[%emt 0:09:37]} 7. Qxc4 {[%emt 0:00:29]} Nc6 {[%emt 0:03:22]} 8. dxc5 {[%emt 0:14:37]} Qa5+ {[%emt 0:01:25]} 9. Nbd2 {[%emt 0:02:53]} Qxc5 {[%emt 0:03:53]} 10. Qxc5 {[%emt 0:01:53]} Bxc5 {[%emt 0:00:01]} 11. a3 {[%emt 0:00:55]} O-O {[%emt 0:01:25]} 12. O-O {[%emt 0:00:18]} Rfe8 {[%emt 0:19:17]} 13. e3 {[%emt 0:02:20]} e5 {[%emt 0:02:31]} 14. b4 {[%emt 0:00:51]} Bd6 {[%emt 0:08:53]} 15. Bb2 {[%emt 0:03:12]} h6 {[%emt 0:05:27]} 16. Nc4 {[%emt 0:08:29]} Bc7 {[%emt 0:00:48]} 17. Rfd1 {[%emt 0:02:13]} Bg4 {[%emt 0:03:58]} 18. h3 {[%emt 0:02:04]} Bxf3 {[%emt 0:00:55]} 19. Bxf3 {[%emt 0:00:02]} e4 {[%emt 0:00:27]} 20. Be2 {[%emt 0:01:32]} Rad8 {[%emt 0:11:27]} 21. Rac1 {[%emt 0:11:15]} Rxd1+ {[%emt 0:05:52]} 22. Rxd1 {[%emt 0:00:27]} Ne5 {[%emt 0:01:43]} 23. Nd6 {[%emt 0:02:45]} Bxd6 {[%emt 0:01:11]} 24. Rxd6 {[%emt 0:00:02]} Re7 {[%emt 0:03:37]} 25. Bd4 {[%emt 0:06:13]} b6 {[%emt 0:02:08]} 26. Rd8+ {[%emt 0:06:38]} Kh7 {[%emt 0:00:38]} 27. Rc8 {[%emt 0:03:15]} Ne8 {[%emt 0:08:00]} 28. Rc1 {[%emt 0:04:31]} Ng6 {[%emt 0:01:56]} 29. a4 {[%emt 0:03:18]} Rc7 {[%emt 0:01:09]} 30. Rxc7 {[%emt 0:00:38]} Nxc7 {[%emt 0:00:00]} 31. Bc4 {[%emt 0:02:38]} f6 {[%emt 0:00:35]} 32. a5 {[%emt 0:01:43]} b5 {[%emt 0:00:12]} 33. Ba2 {[%emt 0:02:07]} Na6 {[%emt 0:01:27]} 34. Bb1 {[%emt 0:02:57]} f5 {[%emt 0:01:03]} 35. g4 {[%emt 0:00:44]} fxg4 {[%emt 0:00:37]} 36. hxg4 {[%emt 0:00:14]} Ne7 {[%emt 0:00:11]} 37. Bxe4+ {[%emt 0:00:11]} Kg8 {[%emt 0:00:12]} 38. Bxa7 {[%emt 0:01:10]} Kf7 {[%emt 0:01:05]} 39. Bc5 {[%emt 0:01:24]} Ke6 {[%emt 0:00:25]} 40. Bxe7 {[%emt 0:00:00]} Kxe7 {[%emt 0:00:00]} 41. Bb7 {[%emt 0:02:52]} Nxb4 {[%emt 0:00:20]} 42. a6 {[%emt 0:00:07]} Nxa6 43. Bxa6 {[%emt 0:00:08]} b4 {[%emt 0:00:18]} 44. Bc4 {[%emt 0:00:16]} Kd6 {[%emt 0:00:03]} 45. f4 {[%emt 0:00:16]} Kc5 {[%emt 0:00:03]} 46. Bf7 {[%emt 0:00:06]} Kd6 {[%emt 0:00:07]} 47. e4 {[%emt 0:00:12]} Ke7 {[%emt 0:00:05]} 48. Bb3 {[%emt 0:00:05]} Kd6 {[%emt 0:00:04]} 49. e5+ {[%emt 0:00:04]} Ke7 {[%emt 0:00:05]} 50. f5 {[%emt 0:00:05]} Kf8 {[%emt 0:00:08]} 51. Kf2 {[%emt 0:00:04]} Ke7 {[%emt 0:00:03]} 52. Kg3 {[%emt 0:00:05]} Kf8 {[%emt 0:00:03]} 53. Kh4 {[%emt 0:00:05]} Ke7 {[%emt 0:00:07]} 54. Kh5 {[%emt 0:00:03]} g5 {[%emt 0:00:08]} 55. fxg6 {[%emt 0:00:07]} Kf8 {[%emt 0:00:03]} 56. Kxh6 {[%emt 0:00:06]} 1-0

[Event "Polish Youth 1st League 2022"]
[Site "Lublin"]
[Date "2022.07.02"]
[Round "8.22"]
[White "Gibala, Adam"]
[Black "Dobosiewicz, Dawid"]
[Result "1/2-1/2"]
[ECO "B48"]
[WhiteElo "1516"]
[BlackElo "1795"]
[Annotator "NA RC"]
[PlyCount "108"]
[EventDate "2022.06.24"]
[EventType "team-tourn"]
[EventCountry "POL"]
[SourceTitle "playchess.com"]
[Source "ChessBase"]
[SourceQuality "1"]
[TimeControl "40/5400+30:1800+30"]

1. e4 {[%emt 0:00:01]} c5 {[%emt 0:00:04]} 2. Nf3 {[%emt 0:00:03]} e6 {[%emt 0:00:04]} 3. d4 {[%emt 0:00:03]} cxd4 {[%emt 0:00:03]} 4. Nxd4 {[%emt 0:00:04]} Nc6 {[%emt 0:00:07]} 5. Nc3 Qc7 {[%emt 0:00:16]} 6. Be3 {[%emt 0:00:17]} a6 {[%emt 0:00:06]} 7. g4 {[%emt 0:00:21]} Bb4 {[%emt 0:05:36]} 8. Nxc6 {[%emt 0:00:06]} bxc6 {[%emt 0:01:00]} 9. Qd4 Be7 {[%emt 0:00:52]} 10. O-O-O {[%emt 0:11:46]} d6 {[%emt 0:07:39]} 11. g5 {[%emt 0:04:41]} e5 {[%emt 0:00:29]} 12. Qa4 {[%emt 0:01:27]} Kf8 {[%emt 0:12:35]} 13. h4 {[%emt 0:00:49]} h6 {[%emt 0:12:11]} 14. Be2 {[%emt 0:05:02]} Bb7 {[%emt 0:15:30]} 15. Bc4 {[%emt 0:00:55]} Qd8 {[%emt 0:01:57]} 16. Qb3 {[%emt 0:05:17]} Qd7 {[%emt 0:05:58]} 17. Bxf7 {[%emt 0:01:23]} Bc8 {[%emt 0:09:33]} 18. Bxg8 Rxg8 {[%emt 0:00:14]} 19. gxh6 {[%emt 0:00:25]} Qe6 {[%emt 0:02:14]} 20. hxg7+ {[%emt 0:00:16]} Kxg7 {[%emt 0:00:40]} 21. Rdg1+ {[%emt 0:03:30]} Kh7 {[%emt 0:00:30]} 22. Qb6 {[%emt 0:06:44]} Bd7 {[%emt 0:01:52]} 23. Bg5 {[%emt 0:01:10]} Bf8 {[%emt 0:02:54]} 24. Qe3 {[%emt 0:01:42]} Re8 {[%emt 0:00:56]} 25. Kb1 {[%emt 0:04:00]} Bg7 {[%emt 0:02:35]} 26. Ne2 {[%emt 0:01:36]} Qf7 {[%emt 0:01:10]} 27. Ng3 {[%emt 0:01:13]} d5 {[%emt 0:00:31]} 28. Qe2 {[%emt 0:01:12]} Rgf8 {[%emt 0:00:26]} 29. Nf5 {[%emt 0:04:08]} Bxf5 {[%emt 0:01:17]} 30. exf5 {[%emt 0:00:07]} Qxf5 {[%emt 0:00:31]} 31. Be3 {[%emt 0:01:09]} d4 {[%emt 0:01:19]} 32. Bc1 {[%emt 0:00:19]} e4 {[%emt 0:01:38]} 33. Rg3 {[%emt 0:02:54]} Be5 {[%emt 0:03:28]} 34. Rg5 {[%emt 0:07:16]} Qf3 {[%emt 0:00:09]} 35. Qxa6 {[%emt 0:00:35]} Bf6 {[%emt 0:04:35]} 36. Rgg1 {[%emt 0:03:01]} d3 {[%emt 0:04:24]} 37. Qxc6 {[%emt 0:01:55]} Qxf2 {[%emt 0:02:27]} 38. cxd3 {[%emt 0:00:48]} exd3 {[%emt 0:00:39]} 39. Qd7+ {[%emt 0:00:12]} Kh8 {[%emt 0:00:28]} 40. Qxd3 {[%emt 0:00:00]} Re2 {[%emt 0:00:00]} 41. Qb3 {[%emt 0:00:49]} Rc8 {[%emt 0:00:37]} 42. Rf1 {[%emt 0:01:58]} Qd4 {[%emt 0:02:54]} 43. Rd1 {[%emt 0:14:37]} Rxc1+ {[%emt 0:01:28]} 44. Kxc1 {[%emt 0:00:09]} Qc5+ {[%emt 0:00:57]} 45. Kb1 {[%emt 0:00:06]} Rxb2+ {[%emt 0:00:05]} 46. Qxb2 {[%emt 0:00:02]} Bxb2 {[%emt 0:00:07]} 47. Kxb2 {[%emt 0:00:09]} Qb4+ {[%emt 0:00:04]} 48. Kc2 {[%emt 0:00:09]} Qc4+ {[%emt 0:00:07]} 49. Kb2 {[%emt 0:01:15]} Qb4+ {[%emt 0:00:12]} 50. Kc2 {[%emt 0:00:11]} Qa4+ {[%emt 0:00:11]} 51. Kb2 {[%emt 0:00:06]} Qb4+ {[%emt 0:00:05]} 52. Kc2 {[%emt 0:00:09]} Qc4+ {[%emt 0:00:10]} 53. Kb2 {[%emt 0:00:21]} Qb4+ {[%emt 0:00:11]} 54. Kc2 {[%emt 0:00:07]} Qc4+ {[%emt 0:00:03]} 1/2-1/2

[Event "Polish Youth 1st League 2022"]
[Site "Lublin"]
[Date "2022.07.02"]
[Round "8.23"]
[White "Barwinska, Ewa"]
[Black "Starosta, Martyna"]
[Result "1-0"]
[ECO "C88"]
[WhiteElo "1825"]
[BlackElo "1918"]
[Annotator "NA RC"]
[PlyCount "63"]
[EventDate "2022.06.24"]
[EventType "team-tourn"]
[EventCountry "POL"]
[SourceTitle "playchess.com"]
[Source "ChessBase"]
[SourceQuality "1"]
[TimeControl "40/5400+30:1800+30"]

1. e4 {[%emt 0:00:01]} e5 {[%emt 0:00:04]} 2. Nf3 {[%emt 0:00:10]} Nc6 {[%emt 0:00:05]} 3. Bb5 {[%emt 0:00:08]} a6 {[%emt 0:00:06]} 4. Ba4 {[%emt 0:00:06]} Nf6 {[%emt 0:00:05]} 5. O-O {[%emt 0:00:12]} Be7 {[%emt 0:00:04]} 6. Re1 {[%emt 0:00:57]} b5 {[%emt 0:00:05]} 7. Bb3 {[%emt 0:00:10]} O-O {[%emt 0:00:11]} 8. a4 {[%emt 0:00:12]} b4 {[%emt 0:01:45]} 9. d4 {[%emt 0:08:45]} Nxd4 {[%emt 0:09:14]} 10. Nxd4 {[%emt 0:02:05]} exd4 {[%emt 0:00:05]} 11. e5 {[%emt 0:07:51]} Ne8 {[%emt 0:00:21]} 12. Qxd4 {[%emt 0:00:25]} c5 {[%emt 0:00:23]} 13. Qe4 {[%emt 0:06:20]} Rb8 {[%emt 0:06:34]} 14. Bf4 {[%emt 0:06:46]} Nc7 {[%emt 0:01:47]} 15. Nd2 {[%emt 0:11:31]} Bb7 {[%emt 0:00:37]} 16. Qd3 {[%emt 0:02:05]} Ne6 {[%emt 0:00:23]} 17. Bg3 {[%emt 0:01:28]} h5 {[%emt 0:03:22]} 18. h3 {[%emt 0:01:50]} Bh4 {[%emt 0:09:44]} 19. Ne4 Be7 {[%emt 0:23:07]} 20. Bc4 {[%emt 0:12:41]} a5 {[%emt 0:02:46]} 21. f4 {[%emt 0:06:29]} g6 {[%emt 0:04:05]} 22. Bh2 {[%emt 0:13:56]} Kg7 {[%emt 0:09:12]} 23. f5 {[%emt 0:03:25]} gxf5 {[%emt 0:01:14]} 24. Nf6 {[%emt 0:05:02]} Rh8 {[%emt 0:04:23]} 25. Qxf5 {[%emt 0:01:23]} Kf8 {[%emt 0:05:21]} 26. Rad1 {[%emt 0:02:29]} Bxf6 {[%emt 0:06:38]} 27. exf6 {[%emt 0:00:05]} Rg8 {[%emt 0:00:34]} 28. Bd6+ {[%emt 0:00:16]} Ke8 {[%emt 0:00:06]} 29. Bxe6 {[%emt 0:03:41]} Rxg2+ {[%emt 0:04:36]} 30. Kf1 {[%emt 0:00:01]} Qb6 {[%emt 0:00:42]} 31. Bxd7+ {[%emt 0:00:17]} Kd8 {[%emt 0:00:05]} 32. Re8# {[%emt 0:00:06]} 1-0